fUST/lending_fUST_20250618
["ID","MTS","AMOUNT","RATE_DAILY","PERIOD"]
[366385178,1750224648787,-169.35438922,0.00021973,2]
[366385179,1750224648797,-500.0,0.00021973,2]
[366385180,1750224648807,-400.81955915,0.00022,2]
[366385181,1750224648817,-546.92009004,0.00022026,2]
[366385182,1750224648827,-500.0,0.00022026,2]
[366385183,1750224648837,-160.0,0.00022026,2]
[366385184,1750224648847,-460.0,0.00022027,6]
[366385185,1750224648857,-283.43838213,0.00022027,6]
[366385186,1750224648866,-460.0,0.00022027,6]
[366385187,1750224648876,-432.37558514,0.00022027,6]
[366385188,1750224648887,-258.78733364,0.00022027,6]
[366385189,1750224648897,-460.0,0.00022027,6]
[366385190,1750224648907,-460.0,0.00022027,6]
[366385191,1750224648917,-496.92454574,0.00022027,6]
[366385192,1750224648926,-437.28477143,0.00022027,6]
[366385193,1750224648936,-241.74991244,0.00022027,6]
[366385194,1750224648945,-590.95651065,0.00022027,6]
[366385195,1750224648955,-460.0,0.00022027,6]
[366385196,1750224648964,-460.0,0.00022027,6]
[366385197,1750224648973,-460.0,0.00022027,6]
[366385198,1750224648983,-460.0,0.00022027,6]
[366385199,1750224648993,-460.0,0.00022027,6]
[366385200,1750224649003,-460.0,0.00022027,6]
[366385201,1750224649013,-460.0,0.00022027,6]
[366385202,1750224649023,-460.0,0.00022027,6]
[366385203,1750224649034,-460.0,0.00022027,6]
[366385204,1750224649044,-460.0,0.00022027,6]
[366385205,1750224649053,-431.24577498,0.00022027,6]
[366385206,1750224649063,-348.7699861,0.00022027,6]
[366385207,1750224649073,-460.0,0.00022027,6]
[366385208,1750224649083,-460.0,0.00022027,6]
[366385209,1750224649092,-460.0,0.00022027,6]
[366385210,1750224649102,-396.70137211,0.00022027,6]
[366385211,1750224649111,-460.0,0.00022027,6]
[366385212,1750224649120,-460.0,0.00022027,6]
[366385213,1750224649130,-460.0,0.00022027,6]
[366385214,1750224649141,-404.5425236,0.00022027,6]
[366385215,1750224649150,-491.1,0.00022027,6]
[366385216,1750224649160,-474.95382324,0.00022027,6]
[366385217,1750224649169,-460.0,0.00022027,6]
[366385218,1750224649181,-401.75313407,0.00022027,6]
[366385219,1750224649190,-345.61231649,0.00022027,6]
[366385220,1750224649200,-460.0,0.00022027,6]
[366385221,1750224649210,-371.57291602,0.00022027,6]
[366385222,1750224649219,-460.0,0.00022027,6]
[366385223,1750224649230,-460.0,0.00022027,6]
[366385224,1750224649239,-419.51160971,0.00022027,6]
[366385225,1750224649249,-460.0,0.00022027,6]
[366385226,1750224649260,-460.0,0.00022027,6]
[366385227,1750224649270,-430.0,0.00022027,6]
[366385228,1750224649279,-227.59168842,0.00022027,6]
[366385229,1750224649288,-460.0,0.00022027,6]
[366385230,1750224649298,-460.0,0.00022027,6]
[366385231,1750224649308,-460.0,0.00022027,6]
[366385232,1750224649318,-369.68938424,0.00022027,6]
[366385233,1750224649328,-438.57042864,0.00022027,6]
[366385234,1750224649337,-460.0,0.00022027,6]
[366385235,1750224649347,-1785.25,0.00022027,6]
[366385236,1750224649357,-460.0,0.00022027,6]
[366385237,1750224649371,-460.0,0.00022027,6]
[366385238,1750224649382,-460.0,0.00022027,6]
[366385239,1750224649392,-804.33,0.00022027,6]
[366385240,1750224649401,-460.0,0.00022027,6]
[366385241,1750224649411,-460.0,0.00022027,6]
[366385242,1750224649421,-460.0,0.00022027,6]
[366385243,1750224649430,-460.0,0.00022027,6]
[366385244,1750224649441,-743.65,0.00022027,6]
[366385245,1750224649450,-685.18,0.00022027,6]
[366385246,1750224649460,-460.0,0.00022027,6]
[366385247,1750224649470,-460.0,0.00022027,6]
[366385248,1750224649479,-798.23,0.00022027,6]
[366385249,1750224649489,-460.0,0.00022027,6]
[366385250,1750224649499,-599.07,0.00022027,6]
[366385251,1750224649509,-154.34,0.00022027,6]
[366385252,1750224649519,-460.0,0.00022027,6]
[366385253,1750224649528,-460.0,0.00022027,6]
[366385254,1750224649539,-460.0,0.00022027,6]
[366385255,1750224649549,-460.0,0.00022027,6]
[366385256,1750224649559,-400.0,0.00022027,6]
[366385257,1750224649569,-460.0,0.00022027,6]
[366385258,1750224649579,-460.0,0.00022027,6]
[366385259,1750224649589,-460.0,0.00022027,6]
[366385260,1750224649599,-460.0,0.00022027,6]
[366385261,1750224649609,-460.0,0.00022027,6]
[366385262,1750224649618,-460.0,0.00022027,6]
[366385263,1750224649627,-601.91,0.00022027,6]
[366385264,1750224649637,-460.0,0.00022027,6]
[366385265,1750224649647,-460.0,0.00022027,6]
[366385266,1750224649656,-460.0,0.00022027,6]
[366385267,1750224649665,-460.0,0.00022027,6]
[366385268,1750224649675,-460.0,0.00022027,6]
[366385269,1750224649685,-460.0,0.00022027,6]
[366385270,1750224649694,-460.0,0.00022027,6]
[366385271,1750224649704,-561.49,0.00022027,6]
[366385272,1750224649713,-460.0,0.00022027,6]
[366385273,1750224649723,-460.0,0.00022027,6]
[366385274,1750224649732,-460.0,0.00022027,6]
[366385275,1750224649742,-460.0,0.00022027,6]
[366385276,1750224649751,-460.0,0.00022027,6]
[366385277,1750224649760,-460.0,0.00022027,6]
[366385278,1750224649769,-460.0,0.00022027,6]
[366385279,1750224649778,-460.0,0.00022027,6]
[366385280,1750224649788,-460.0,0.00022027,6]
[366385281,1750224649797,-460.0,0.00022027,6]
[366385282,1750224649807,-460.0,0.00022027,6]
[366385283,1750224649816,-2254.52,0.00022027,6]
[366385284,1750224649826,-460.0,0.00022027,6]
[366385285,1750224649836,-460.0,0.00022027,6]
[366385286,1750224649845,-263.4333544,0.00022027,6]
[366385287,1750224649855,-460.0,0.00022027,6]
[366385288,1750224649865,-535.29,0.00022027,6]
[366385289,1750224649874,-460.0,0.00022027,6]
[366385290,1750224649885,-526.48,0.00022027,6]
[366385291,1750224649894,-460.0,0.00022027,6]
[366385292,1750224649904,-460.0,0.00022027,6]
[366385293,1750224649913,-460.0,0.00022027,6]
[366385294,1750224649922,-460.0,0.00022027,6]
[366385295,1750224649931,-460.0,0.00022027,6]
[366385296,1750224649941,-460.0,0.00022027,6]
[366385297,1750224649950,-460.0,0.00022027,6]
[366385298,1750224649960,-460.0,0.00022027,6]
[366385299,1750224649969,-460.0,0.00022027,6]
[366385300,1750224649979,-460.0,0.00022027,6]
[366385301,1750224649989,-700.55,0.00022027,6]
[366385302,1750224649999,-460.0,0.00022027,6]
[366385303,1750224650009,-281.167621,0.00022042,2]
[366385304,1750224650019,-360.94321083,0.00022076,2]
[366385305,1750224650028,-460.0,0.00022136,6]
[366385306,1750224650037,-460.0,0.00022136,6]
[366385307,1750224650047,-460.0,0.00022136,6]
[366385308,1750224650056,-400.0,0.00022136,6]
[366385309,1750224650065,-460.0,0.00022136,6]
[366385310,1750224650073,-460.0,0.00022136,6]
[366385311,1750224650085,-460.0,0.00022136,6]
[366385312,1750224650095,-460.0,0.00022136,6]
[366385313,1750224650105,-460.0,0.00022136,6]
[366385314,1750224650116,-460.0,0.00022136,6]
[366385315,1750224650125,-460.0,0.00022136,6]
[366385316,1750224650135,-460.0,0.00022136,6]
[366385317,1750224650144,-460.0,0.00022136,6]
[366385318,1750224650154,-460.0,0.00022136,6]
[366385319,1750224650164,-460.0,0.00022136,6]
[366385320,1750224650272,-491.8,0.00022136,6]
[366385321,1750224650283,-276.12521588,0.00022136,6]
[366385322,1750224650293,-433.21965183,0.00022136,6]
[366385323,1750224650303,-424.98437819,0.00022136,6]
[366385324,1750224650314,-460.0,0.00022136,6]
[366385325,1750224650324,-437.49212001,0.00022136,6]
[366385326,1750224650333,-306.14318545,0.00022136,6]
[366385327,1750224650343,-249.25,0.00022136,6]
[366385328,1750224650352,-1785.25,0.00022136,6]
[366385329,1750224650362,-460.0,0.00022136,6]
[366385330,1750224650371,-367.74408648,0.00022136,6]
[366385331,1750224650381,-370.0,0.00022136,6]
[366385332,1750224650391,-804.33,0.00022136,6]
[366385333,1750224650401,-533.39477749,0.00022136,6]
[366385334,1750224650410,-460.0,0.00022136,6]
[366385335,1750224650419,-305.23334353,0.00022136,6]
[366385336,1750224650429,-460.0,0.00022136,6]
[366385337,1750224650439,-743.65,0.00022136,6]
[366385338,1750224650448,-685.18,0.00022136,6]
[366385339,1750224650458,-460.0,0.00022136,6]
[366385340,1750224650467,-460.0,0.00022136,6]
[366385341,1750224650476,-798.23,0.00022136,6]
[366385342,1750224650486,-460.0,0.00022136,6]
[366385343,1750224650496,-375.98,0.00022136,6]
[366385344,1750224650506,-432.08,0.00022136,6]
[366385345,1750224650515,-460.0,0.00022136,6]
[366385346,1750224650525,-460.0,0.00022136,6]
[366385347,1750224650534,-460.0,0.00022136,6]
[366385348,1750224650544,-460.0,0.00022136,6]
[366385349,1750224650553,-320.11,0.00022136,6]
[366385350,1750224650563,-460.0,0.00022136,6]
[366385351,1750224650573,-460.0,0.00022136,6]
[366385352,1750224650582,-601.91,0.00022136,6]
[366385353,1750224650592,-460.0,0.00022136,6]
[366385354,1750224650602,-460.0,0.00022136,6]
[366385355,1750224650611,-460.0,0.00022136,6]
[366385356,1750224650621,-460.0,0.00022136,6]
[366385357,1750224650631,-460.0,0.00022136,6]
[366385358,1750224650641,-272.3,0.00022136,6]
[366385359,1750224650650,-173.32,0.00022136,6]
[366385360,1750224650660,-561.49,0.00022136,6]
[366385361,1750224650670,-460.0,0.00022136,6]
[366385362,1750224650679,-460.0,0.00022136,6]
[366385363,1750224650689,-460.0,0.00022136,6]
[366385364,1750224650699,-190.75,0.00022136,6]
[366385365,1750224650709,-460.0,0.00022136,6]
[366385366,1750224650719,-460.0,0.00022136,6]
[366385367,1750224650728,-460.0,0.00022136,6]
[366385368,1750224650736,-460.0,0.00022136,6]
[366385369,1750224650746,-460.0,0.00022136,6]
[366385370,1750224650755,-2254.52,0.00022136,6]
[366385371,1750224650765,-460.0,0.00022136,6]
[366385372,1750224650775,-460.0,0.00022136,6]
[366385373,1750224650784,-460.0,0.00022136,6]
[366385374,1750224650793,-535.29,0.00022136,6]
[366385375,1750224650803,-526.48,0.00022136,6]
[366385376,1750224650812,-460.0,0.00022136,6]
[366385377,1750224650822,-460.0,0.00022136,6]
[366385378,1750224650832,-460.0,0.00022136,6]
[366385379,1750224650842,-233.12817313,0.00022136,6]
[366385380,1750224650851,-460.0,0.00022136,6]
[366385381,1750224650860,-460.0,0.00022136,6]
[366385382,1750224650870,-372.59391494,0.00022136,6]
[366385383,1750224650880,-158.4,0.00022136,6]
[366385384,1750224650891,-460.0,0.00022136,6]
[366385385,1750224650900,-700.55,0.00022136,6]
[366385386,1750224650910,-270.0,0.00022136,6]
[366385387,1750224650920,-749.4029694,0.00022176,6]
[366385388,1750224650929,-317.0,0.00022245,2]
[366385389,1750224650939,-460.0,0.00022246,6]
[366385390,1750224650948,-460.0,0.00022246,6]
[366385391,1750224650958,-460.0,0.00022246,6]
[366385392,1750224650967,-368.44450834,0.00022246,6]
[366385393,1750224650977,-420.05826686,0.00022246,6]
[366385394,1750224650987,-584.31312303,0.00022246,6]
[366385395,1750224650996,-460.0,0.00022246,6]
[366385396,1750224651005,-460.0,0.00022246,6]
[366385397,1750224651015,-460.0,0.00022246,6]
[366385398,1750224651024,-274.84,0.00022246,6]
[366385399,1750224651033,-460.0,0.00022246,6]
[366385400,1750224651042,-1785.25,0.00022246,6]
[366385401,1750224651052,-460.0,0.00022246,6]
[366385402,1750224651060,-804.33,0.00022246,6]
[366385403,1750224651070,-460.0,0.00022246,6]
[366385404,1750224651079,-460.0,0.00022246,6]
[366385405,1750224651089,-743.65,0.00022246,6]
[366385406,1750224651098,-685.18,0.00022246,6]
[366385407,1750224651107,-460.0,0.00022246,6]
[366385408,1750224651116,-460.0,0.00022246,6]
[366385409,1750224651126,-798.23,0.00022246,6]
[366385410,1750224651137,-460.0,0.00022246,6]
[366385411,1750224651147,-329.68,0.00022246,6]
[366385412,1750224651156,-460.0,0.00022246,6]
[366385413,1750224651165,-460.0,0.00022246,6]
[366385414,1750224651175,-460.0,0.00022246,6]
[366385415,1750224651188,-460.0,0.00022246,6]
[366385416,1750224651198,-460.0,0.00022246,6]
[366385417,1750224651207,-601.91,0.00022246,6]
[366385418,1750224651217,-440.0,0.00022246,6]
[366385419,1750224651227,-460.0,0.00022246,6]
[366385420,1750224651236,-460.0,0.00022246,6]
[366385421,1750224651245,-460.0,0.00022246,6]
[366385422,1750224651254,-561.49,0.00022246,6]
[366385423,1750224651266,-460.0,0.00022246,6]
[366385424,1750224651276,-460.0,0.00022246,6]
[366385425,1750224651293,-460.0,0.00022246,6]
[366385426,1750224651305,-460.0,0.00022246,6]
[366385427,1750224651314,-460.0,0.00022246,6]
[366385428,1750224651324,-300.25,0.00022246,6]
[366385429,1750224651336,-460.0,0.00022246,6]
[366385430,1750224651346,-460.0,0.00022246,6]
[366385431,1750224651355,-2254.52,0.00022246,6]
[366385432,1750224651366,-460.0,0.00022246,6]
[366385433,1750224651376,-460.0,0.00022246,6]
[366385434,1750224651386,-460.0,0.00022246,6]
[366385435,1750224651395,-535.29,0.00022246,6]
[366385436,1750224651406,-526.48,0.00022246,6]
[366385437,1750224651416,-491.2928301,0.00022246,6]
[366385438,1750224651426,-460.0,0.00022246,6]
[366385439,1750224651435,-460.0,0.00022246,6]
[366385440,1750224651444,-460.0,0.00022246,6]
[366385441,1750224651454,-700.55,0.00022246,6]
[366385442,1750224651464,-420.0,0.0002229,2]
[366385443,1750224651474,-2251.86,0.000223,7]
[366385444,1750224651483,-174.0,0.00022328,2]
[366385445,1750224651493,-419.12082836,0.00022356,6]
[366385446,1750224651513,-20.87917164,0.00022356,6]
[366385447,1750224651522,-180.60663862,0.00022356,6]
[366385448,1750224651531,-460.0,0.00022356,6]
[366385449,1750224651541,-251.04192146,0.00022356,6]
[366385450,1750224651550,-460.0,0.00022356,6]
[366385451,1750224651559,-460.0,0.00022356,6]
[366385452,1750224651569,-1785.25,0.00022356,6]
[366385453,1750224651579,-460.0,0.00022356,6]
[366385454,1750224651588,-804.33,0.00022356,6]
[366385455,1750224651598,-559.9,0.00022356,6]
[366385456,1750224651607,-460.0,0.00022356,6]
[366385457,1750224651617,-743.65,0.00022356,6]
[366385458,1750224651627,-685.18,0.00022356,6]
[366385459,1750224651637,-460.0,0.00022356,6]
[366385460,1750224651647,-385.96,0.00022356,6]
[366385461,1750224651657,-798.23,0.00022356,6]
[366385462,1750224651667,-460.0,0.00022356,6]
[366385463,1750224651676,-460.0,0.00022356,6]
[366385464,1750224651685,-460.0,0.00022356,6]
[366385465,1750224651695,-460.0,0.00022356,6]
[366385466,1750224651704,-460.0,0.00022356,6]
[366385467,1750224651713,-601.91,0.00022356,6]
[366385468,1750224651722,-460.0,0.00022356,6]
[366385469,1750224651732,-460.0,0.00022356,6]
[366385470,1750224651741,-298.04,0.00022356,6]
[366385471,1750224651751,-561.49,0.00022356,6]
[366385472,1750224651760,-460.0,0.00022356,6]
[366385473,1750224651770,-460.0,0.00022356,6]
[366385474,1750224651779,-460.0,0.00022356,6]
[366385475,1750224651789,-460.0,0.00022356,6]
[366385476,1750224651798,-460.0,0.00022356,6]
[366385477,1750224651808,-311.52820238,0.00022356,6]
[366385478,1750224651859,-148.47179762,0.00022356,6]
[366385479,1750224651884,-151.52820238,0.00022356,6]
[366385480,1750224652477,-151.52820238,0.00021917,6]
[366385483,1750224656087,-263.72800973,0.00021917,6]
[366385484,1750224660735,-44.74378789,0.00021917,6]
[366385485,1750224660762,-155.66251111,0.00021917,6]
[366385489,1750225031469,-263.72800973,0.00019618,2]
[366385490,1750225038477,-240.79549263,0.00019618,2]
[366385491,1750225107896,-183.66,0.00019618,2]
[366385492,1750225110685,-285.02471758,0.00019618,2]
[366385493,1750225221176,-500.0,0.00019422,2]
[366385495,1750225242074,-190.84605584,0.00019422,2]
[366385496,1750225243770,-309.15394416,0.00019422,2]
[366385497,1750225248237,-365.0,0.00021917,6]
[366385498,1750225276657,-190.84605584,0.00019422,2]
[366385499,1750225277746,-309.15394416,0.00019422,2]
[366385500,1750225282510,-195.62592099,0.00019422,2]
[366385501,1750225375254,-163.45706847,0.00019422,2]
[366385502,1750225385112,-300.0,0.00019422,2]
[366385503,1750225386210,-609.0,0.00019422,2]
[366385504,1750225406121,-1232.0,0.00019228,2]
[366385505,1750225412593,-151.16903462,0.00019228,2]
[366385506,1750225415117,-344.83096538,0.00019228,2]
[366385507,1750225442750,-157.0,0.00019228,2]
[366385508,1750225448480,168.27817,0.00013699,2]
[366385509,1750225550881,-300.0,0.00019228,2]
[366385510,1750225583849,-202.54773747,0.000189,2]
[366385511,1750225593457,-297.45226253,0.00018711,2]
[366385512,1750225614369,-160.0,0.00018711,2]
[366385514,1750225774012,-281.16298041,0.00018711,2]
[366385515,1750225781386,-258.0,0.00018524,2]
[366385541,1750225832168,-4162.35933612,0.00018524,2]
[366385549,1750225832224,-460.0,0.00018524,2]
[366385550,1750225832236,-119.64066388,0.00018524,2]
[366385551,1750225832246,-45.40003483,0.000189,2]
[366385552,1750225832255,-160.01493825,0.00019178,2]
[366385553,1750225832266,-0.79316575,0.00019178,2]
[366385554,1750225832276,-551.89,0.00019791,2]
[366385555,1750225832286,-1200.0,0.00019998,2]
[366385556,1750225832295,-300.0,0.00019999,2]
[366385557,1750225832304,-300.0,0.00019999,2]
[366385558,1750225832314,-300.0,0.00019999,2]
[366385559,1750225832323,-5594.336311,0.0002,2]
[366385560,1750225832332,-452.65779251,0.00020114,2]
[366385561,1750225832342,-173.48,0.00020191,2]
[366385562,1750225832351,-28633.4473596,0.00020201,2]
[366385563,1750225832360,-735.73989644,0.00020268,2]
[366385564,1750225832369,-290.747978,0.00020368,2]
[366385565,1750225832379,-735.73989638,0.00020955,2]
[366385566,1750225832388,-160.0,0.00021,2]
[366385567,1750225832398,-1103.79,0.0002159,2]
[366385568,1750225832407,-735.73989638,0.00021641,2]
[366385569,1750225832416,-420.0,0.00021777,2]
[366385570,1750225832425,-420.0,0.00021777,2]
[366385571,1750225832434,-511.1901685,0.00021865,2]
[366385572,1750225832443,-383.04499953,0.00021875,2]
[366385573,1750225832453,-1680.0,0.0002188,2]
[366385574,1750225832462,-160.0,0.00021916,2]
[366385575,1750225832471,-276.036,0.00021916,2]
[366385576,1750225832481,-177.414,0.00021916,2]
[366385577,1750225832490,-500.0,0.00021916,2]
[366385578,1750225832500,-500.0,0.00021916,2]
[366385579,1750225832509,-208.83015623,0.00021916,2]
[366385580,1750225832519,-316.07662885,0.00021916,2]
[366385581,1750225832528,-500.0,0.00021916,2]
[366385582,1750225832537,-500.0,0.00021916,2]
[366385583,1750225832548,-500.0,0.00021916,2]
[366385584,1750225832557,-500.0,0.00021916,2]
[366385585,1750225832567,-500.0,0.00021916,2]
[366385586,1750225832577,-500.0,0.00021916,2]
[366385587,1750225832586,-450.0,0.00021916,2]
[366385588,1750225832595,-182.67772693,0.00021916,2]
[366385589,1750225832605,-460.0,0.00021917,6]
[366385590,1750225832614,-460.0,0.00021917,6]
[366385591,1750225832624,-460.0,0.00021917,6]
[366385592,1750225832633,-460.0,0.00021917,6]
[366385593,1750225832643,-374.0520596,0.00021917,6]
[366385594,1750225832652,-460.0,0.00021917,6]
[366385595,1750225832662,-460.0,0.00021917,6]
[366385596,1750225832671,-460.0,0.00021917,6]
[366385597,1750225832680,-460.0,0.00021917,6]
[366385598,1750225832690,-460.0,0.00021917,6]
[366385599,1750225832699,-462.30106275,0.00021917,6]
[366385600,1750225832711,-921.63,0.00021917,6]
[366385601,1750225832721,-188.31329504,0.00021917,6]
[366385602,1750225832731,-61.97288609,0.00021917,6]
[366385603,1750225832742,-384.81577874,0.00021917,6]
[366385623,1750225838189,-13.21133517,0.00021917,6]
[366385624,1750225838199,-431.53964893,0.00021917,6]
[366385625,1750225838209,-276.17485563,0.00021917,6]
[366385626,1750225838250,-183.82514437,0.00021917,6]
[366385627,1750225838260,-422.43429731,0.00021917,6]
[366385628,1750225838269,-460.0,0.00021917,6]
[366385629,1750225838279,-1547.49,0.00021917,6]
[366385630,1750225838289,-190.32827467,0.00021917,6]
[366385631,1750225838299,-1085.18,0.00021917,6]
[366385632,1750225838308,-824.85,0.00021917,6]
[366385633,1750225838318,-1223.73,0.00021917,6]
[366385634,1750225838328,-460.0,0.00021917,6]
[366385635,1750225838337,-466.81009867,0.00021917,6]
[366385636,1750225838347,-1185.95,0.00021917,6]
[366385637,1750225838356,-460.0,0.00021917,6]
[366385638,1750225838366,-460.0,0.00021917,6]
[366385639,1750225838376,-460.0,0.00021917,6]
[366385640,1750225838385,-426.28997258,0.00021917,2]
[366385641,1750225838395,-460.0,0.00021917,6]
[366385642,1750225838405,-561.6,0.00021917,6]
[366385643,1750225838414,-460.0,0.00021917,6]
[366385644,1750225838423,-460.0,0.00021917,6]
[366385645,1750225838433,-460.0,0.00021917,6]
[366385646,1750225838443,-460.0,0.00021917,6]
[366385647,1750225838452,-315.98,0.00021917,6]
[366385648,1750225838461,-460.0,0.00021917,6]
[366385649,1750225838469,-460.0,0.00021917,6]
[366385650,1750225838477,-460.0,0.00021917,6]
[366385651,1750225838486,-460.0,0.00021917,6]
[366385652,1750225838495,-748.09,0.00021917,6]
[366385653,1750225838504,-460.0,0.00021917,6]
[366385654,1750225838513,-460.0,0.00021917,6]
[366385655,1750225838522,-460.0,0.00021917,6]
[366385656,1750225838532,-460.0,0.00021917,6]
[366385657,1750225838542,-460.0,0.00021917,6]
[366385658,1750225838551,-460.0,0.00021917,6]
[366385659,1750225838561,-460.0,0.00021917,6]
[366385660,1750225838572,-250.0,0.00021917,6]
[366385661,1750225838583,-460.0,0.00021917,6]
[366385662,1750225838592,-460.0,0.00021917,6]
[366385663,1750225838601,-531.1,0.00021917,6]
[366385664,1750225838610,-824.29,0.00021917,6]
[366385665,1750225838619,-460.0,0.00021917,6]
[366385666,1750225838628,-460.0,0.00021917,6]
[366385667,1750225838637,-460.0,0.00021917,6]
[366385668,1750225838762,-460.0,0.00021917,6]
[366385669,1750225838772,-460.0,0.00021917,6]
[366385670,1750225838783,-460.0,0.00021917,6]
[366385671,1750225838793,-460.0,0.00021917,6]
[366385672,1750225838803,-460.0,0.00021917,6]
[366385673,1750225838813,-460.0,0.00021917,6]
[366385674,1750225838823,-513.52,0.00021917,6]
[366385675,1750225838833,-460.0,0.00021917,6]
[366385676,1750225838842,-207.44324608,0.00021917,6]
[366385677,1750225838851,-460.0,0.00021917,6]
[366385678,1750225838861,-460.0,0.00021917,6]
[366385679,1750225838871,-460.0,0.00021917,6]
[366385680,1750225838880,-440.0,0.00021917,6]
[366385681,1750225838890,-395.15,0.00021917,6]
[366385682,1750225838899,-460.0,0.00021917,6]
[366385683,1750225838909,-460.0,0.00021917,6]
[366385684,1750225838918,-3347.96,0.00021917,6]
[366385685,1750225838928,-1223.32,0.00021917,6]
[366385686,1750225838938,-499.35,0.00021917,6]
[366385687,1750225838947,-460.0,0.00021917,6]
[366385688,1750225838957,-460.0,0.00021917,6]
[366385689,1750225838966,-460.0,0.00021917,6]
[366385690,1750225838976,-460.0,0.00021917,6]
[366385691,1750225838986,-927.6,0.00021917,6]
[366385692,1750225838995,-2046.3,0.00021918,2]
[366385693,1750225839005,-158.0,0.00022,2]
[366385694,1750225839014,-176.03060901,0.00022,2]
[366385695,1750225839023,-176.0,0.00022,2]
[366385696,1750225839033,-291.82944297,0.00022007,2]
[366385697,1750225839042,-460.0,0.00022027,6]
[366385698,1750225839052,-460.0,0.00022027,6]
[366385699,1750225839061,-460.0,0.00022027,6]
[366385700,1750225839071,-274.84,0.00022027,6]
[366385701,1750225839080,-460.0,0.00022027,6]
[366385702,1750225839089,-532.78,0.00022027,6]
[366385703,1750225839099,-167.11675586,0.00022027,6]
[366385704,1750225839108,-460.0,0.00022027,6]
[366385705,1750225839118,-460.0,0.00022027,6]
[366385706,1750225839127,-460.0,0.00022027,6]
[366385707,1750225839137,-1547.49,0.00022027,6]
[366385708,1750225839146,-1085.18,0.00022027,6]
[366385709,1750225839156,-824.85,0.00022027,6]
[366385710,1750225839165,-1223.73,0.00022027,6]
[366385711,1750225839174,-460.0,0.00022027,6]
[366385712,1750225839184,-1185.95,0.00022027,6]
[366385713,1750225839193,-460.0,0.00022027,6]
[366385714,1750225839203,-460.0,0.00022027,6]
[366385715,1750225839212,-460.0,0.00022027,6]
[366385716,1750225839221,-460.0,0.00022027,6]
[366385717,1750225839230,-561.6,0.00022027,6]
[366385718,1750225839240,-460.0,0.00022027,6]
[366385719,1750225839249,-460.0,0.00022027,6]
[366385720,1750225839258,-460.0,0.00022027,6]
[366385721,1750225839266,-460.0,0.00022027,6]
[366385722,1750225839276,-460.0,0.00022027,6]
[366385723,1750225839285,-748.09,0.00022027,6]
[366385724,1750225839294,-288.19,0.00022027,6]
[366385725,1750225839303,-460.0,0.00022027,6]
[366385726,1750225839313,-460.0,0.00022027,6]
[366385727,1750225839323,-460.0,0.00022027,6]
[366385728,1750225839333,-460.0,0.00022027,6]
[366385729,1750225839342,-460.0,0.00022027,6]
[366385730,1750225839351,-460.0,0.00022027,6]
[366385731,1750225839361,-460.0,0.00022027,6]
[366385732,1750225839370,-460.0,0.00022027,6]
[366385733,1750225839380,-824.29,0.00022027,6]
[366385734,1750225839389,-460.0,0.00022027,6]
[366385735,1750225839399,-460.0,0.00022027,6]